Cogmind - Beta 13 @@@ ROGUE MODE // 2024.05.26 @ 04:19:25 Player: BrainTooSmol Result: Self-destructed Performance ------------- Evolutions (2) 1000 Regions Visited (4) 800 Robots Destroyed (85) 425 Value Destroyed (2467) 2467 Prototype IDs (4) 80 Alien Tech Used (0) 0 Bonus (86) 86 TOTAL SCORE: 4858 Bonus ------- High Alert Combat Kills 86 Cogmind --------- Core Integrity 47/550 Matter 257/300 Energy 100/100 System Corruption 0% Temperature Cool (0) Movement Core (250) Ox4 Location -8/Storage Parts ------- > --- POWER (1) -------- (None) > --- PROPULSION (3) --- (None) > --- UTILITY (3) ------ Medium Storage Unit Hacking Suite > --- WEAPON (4) ------- Rocket Launcher > --- INVENTORY (10) --- Improved Ion Engine Light Nuclear Core Recoil Stabilizer Recoil Stabilizer Weapon Shielding Improved Light Armor Plating Shield Generator Faulty Enhanced Autogun Peak State ------------ > --- POWER ------------ Heavy Ion Engine > --- PROPULSION ------- Titanium Leg Titanium Leg Titanium Leg > --- UTILITY ---------- Medium Storage Unit Medium Armor Plating Hacking Suite > --- WEAPON ----------- Autogun Improved Assault Rifle Improved Assault Rifle Enhanced Autogun > --- INVENTORY -------- Titanium Leg Recoil Stabilizer Recoil Stabilizer Weapon Shielding Improved Light Armor Plating Shield Generator Hacking Suite Rocket Launcher Mining Claw [Rating: 32] Favorites ----------- Power Cooled Ion Engine Engine Cooled Ion Engine Power Core Light Nuclear Core Propulsion Aluminum Leg Leg Aluminum Leg Utility Small Storage Unit Device Seismic Detector Storage Small Storage Unit Hackware Hacking Suite Protection Medium Armor Plating Weapon Improved Assault Rifle Energy Gun Medium Laser Ballistic Gun Improved Assault Rifle Launcher Rocket Launcher Slashing Weapon Mining Claw Build | -11 -10 -9 -8 -8 ------- Run | Yrd Mat Mat Mat Sto Slots Evolved 4 | . . 2 2 . Power . | . . . . . Propulsion 1 | . . 1 . . Utility 1 | . . . 1 . Weapon 2 | . . 1 1 . Parts Attached 59 | 1 12 27 13 6 Power 5 | . 1 2 2 . Engine 4 | . 1 2 1 . Core 1 | . . . 1 . Reactor . | . . . . . Propulsion 15 | . 4 10 . 1 Treads . | . . . . . Leg 15 | . 4 10 . 1 Wheel . | . . . . . Hover . | . . . . . Flight . | . . . . . Utility 11 | 1 1 3 4 2 Device 4 | 1 1 1 1 . Storage 1 | . . 1 . . Processor . | . . . . . Hackware 2 | . . . 1 1 Protection 4 | . . 1 2 1 Artifact . | . . . . . Weapon 28 | . 6 12 7 3 Energy Gun 1 | . 1 . . . Energy Cannon . | . . . . . Ballistic Gun 18 | . 2 11 5 . Ballistic Cannon . | . . . . . Launcher 5 | . 2 . 1 2 Special Weapon . | . . . . . Impact Weapon . | . . . . . Slashing Weapon 4 | . 1 1 1 1 Piercing Weapon . | . . . . . Special Melee Weapon . | . . . . . Unidentified Prototypes 4 | . 1 2 1 . Parts Lost 19 | . 2 2 8 7 Power 2 | . . . 2 . Propulsion 5 | . 1 . . 4 Utility 6 | . . 2 2 2 Weapon 6 | . 1 . 4 1 Highest Loss Streak 5 | . 2 1 5 3 To Critical Strikes . | . . . . . Average Slot Usage (%) 92 | . 99 95 92 42 Engine 9 | . 14 10 2 . Leg 29 | . 27 32 27 10 Device 7 | . 14 6 2 . Storage 11 | . 14 11 9 9 Hackware 1 | . . . 4 12 Protection 2 | . . 1 8 3 Energy Gun 1 | . 6 . . . Ballistic Gun 26 | . 19 32 32 . Naked Turns . | . . . . . Heaviest Build 37 | 15 20 34 37 17 Greatest Support 51 | 20 20 51 51 17 Greatest Overweight (x) 4 | . 1 . . 4 Average Overweight (x) . | . . . . . Largest Inventory Capacity 10 | 8 8 10 10 10 Average Capacity 8 | 8 8 8 10 10 Most Carried 10 | 6 8 8 10 10 Average Carried 6 | 4 4 7 8 8 Final Capacity 10 | 8 8 10 10 10 Final Carried 10 | 2 7 7 10 8 Class Distribution -------------------- 34% | Mutant 22% | Scavenger-Gunner 20% | Tank 17% | Gunner Dominant Class ---------------- Mutant | -10/Materials Scavenger-Gunner | -9/Materials Tank | -8/Materials Mutant | -8/Storage Resources | -11 -10 -9 -8 -8 ----------- Run | Yrd Mat Mat Mat Sto Matter Collected 1996 | 222 346 902 472 54 Remotely . | . . . . . Salvage Created 2632 | 10 524 1249 613 236 Parts 181 | 3 35 101 30 12 Haulers Intercepted . | . . . . . Recyclers Shooed 2 | . 1 1 . . Parts Field Recycled . | . . . . . Retrieved Matter . | . . . . . Parts Self-Destructed . | . . . . . Prevented . | . . . . . Kills | -11 -10 -9 -8 -8 ------- Run | Yrd Mat Mat Mat Sto Combat Hostiles Destroyed 70 | . 15 29 18 8 Melee 3 | . . . . 3 Guns 55 | . 13 29 13 . AOE 12 | . 2 . 5 5 Classes Destroyed 7 | 1 4 2 . . Worker 2 | . . 1 1 . Tunneler 3 | 1 1 1 . . Operator 3 | . 1 1 1 . Watcher 7 | . 2 5 . . Swarmer 23 | . 6 9 5 3 Grunt 32 | . 9 10 10 3 Sentry 15 | . . 10 3 2 Best Kill Streak 7 | 1 4 5 7 3 Combat Bots Only 7 | . 4 5 7 3 Max Kills in Single Turn 3 | 1 2 2 2 3 Gunslinging 1 | . . 1 1 . Exploded 3 | . 2 . 2 3 Melee 1 | . . . . 1 Uniques/NPCs Destroyed . | . . . . . Combat | -11 -10 -9 -8 -8 -------- Run | Yrd Mat Mat Mat Sto Hostile Shots Fired 415 | . 77 130 113 95 Missed 116 | . 27 34 35 20 Damage Taken 4009 | . 502 1198 1291 1018 Core 794 | . 94 197 150 353 Absorbed by Shields . | . . . . . Regen/Repaired (Parts) 488 | . . 488 . . Core Remaining (%) 70 | 100 62 50 . . Volleys Fired 172 | 4 65 65 34 4 Largest 4 | 2 2 3 4 1 Hottest 92 | 70 70 69 92 33 Shots Fired 448 | 8 127 195 114 4 Gun 438 | 8 124 195 111 . Cannon . | . . . . . Launcher 10 | . 3 . 3 4 Special . | . . . . . Kinetic 387 | 4 77 195 111 . Thermal 51 | 4 47 . . . Explosive 10 | . 3 . 3 4 Electromagnetic . | . . . . . Robot Hit Streak 31 | 5 16 31 12 5 Robot Miss Streak 3 | 2 3 2 2 . Penetration Max . | . . . . . Secondary Targets 11 | . 2 5 4 . Max Gunslinging Chain 2 | . 1 1 2 . Shots Hit Robots 320 | 6 85 128 74 27 Core Hits 134 | 1 31 53 38 11 Critical Kills . | . . . . . Critical Parts Destroyed . | . . . . . Critical Strikes 4 | 1 2 1 . . Burn 3 | 1 2 . . . Destroy 1 | . . 1 . . Melee Attacks 33 | . 3 1 1 28 Impact . | . . . . . Slashing 33 | . 3 1 1 28 Piercing . | . . . . . Sneak Attacks . | . . . . . Combat Hostiles . | . . . . . Follow-up Attacks . | . . . . . Damage Inflicted 6138 | 71 1121 2026 2008 912 Guns 4262 | 71 1040 2026 1125 . Cannons . | . . . . . Explosions 1337 | . 77 . 883 377 Melee 535 | . . . . 535 Ramming 4 | . 4 . . . Kinetic 3854 | 47 656 2026 1125 . Thermal 750 | 24 384 . 342 . Explosive 995 | . 77 . 541 377 Electromagnetic . | . . . . . Impact . | . . . . . Slashing 535 | . . . . 535 Piercing . | . . . . . Highest Corruption . | . . . . . Average Corruption . | . . . . . Corruption Purged . | . . . . . Corruption Blocked . | . . . . . Overload Shots . | . . . . . Overflow Damage 60 | . . . 42 18 Projectiles . | . . . . . Explosions 57 | . . . 42 15 Melee 3 | . . . . 3 Knockbacks . | . . . . . Impact . | . . . . . Kinetic . | . . . . . Secondary . | . . . . . Self-Inflicted Damage 114 | . . . . 114 Shots 3 | . . . . 3 Rammed . | . . . . . Targets Rammed 1 | . 1 . . . Kicked 1 | . 1 . . . Crushed . | . . . . . Highest Temperature 258 | 27 156 54 258 3 Average Temperature 35 | 12 43 14 43 3 Received Heat Transfer 1473 | . 180 474 432 387 Siege Activations . | . . . . . Robots Corrupted . | . . . . . Combat Hostiles . | . . . . . Parts Fried . | . . . . . Impact Corruptions . | . . . . . Robots Melted . | . . . . . Combat Hostiles . | . . . . . Parts Melted 5 | . 5 . . . Heat Transferred 1643 | 148 1295 . 200 . Parts Sabotaged . | . . . . . Parts Stolen . | . . . . . Parts Stripped . | . . . . . Power Chain Reactions . | . . . . . Alert | -11 -10 -9 -8 -8 ------- Run | Yrd Mat Mat Mat Sto Peak Influence 512 | 5 183 473 512 383 Initial 157 | . 3 42 135 157 Average 230 | 2 90 293 289 255 Maximum Alert Level 2 | . . 2 2 1 Low Security (%) 43 | 100 100 17 26 20 Level 1 51 | . . 70 72 79 Level 2 5 | . . 11 . . Level 3 . | . . . . . Level 4 . | . . . . . Level 5 . | . . . . . High Security . | . . . . . Max Security . | . . . . . Squads Dispatched 13 | . 5 2 5 1 Investigation 5 | . 4 . 1 . Extermination . | . . . . . Reinforcement 7 | . 1 1 4 1 Assault 1 | . . 1 . . Garrison . | . . . . . Intercept . | . . . . . Searches Triggered . | . . . . . Construction Impeded . | . . . . . Haulers Reinforced . | . . . . . Active Scanning Responses . | . . . . . Cargo Convoy Interrupts . | . . . . . Stealth | -11 -10 -9 -8 -8 --------- Run | Yrd Mat Mat Mat Sto Distress Signals 6 | . 1 2 3 . Communications Jammed . | . . . . . Distress Signals . | . . . . . Times Spotted 124 | . 32 45 36 11 Peak Tracking Total 13 | . 6 6 13 4 Tactical Retreats 11 | . 1 6 4 . Traps | -11 -10 -9 -8 -8 ------- Run | Yrd Mat Mat Mat Sto Traps Triggered 5 | . 2 1 2 . Indirectly . | . . . . . Trap Hack Attempts . | . . . . . Triggered . | . . . . . Disarmed . | . . . . . Reprogrammed . | . . . . . Reused . | . . . . . Traps Extracted . | . . . . . Installed . | . . . . . Triggered . | . . . . . Machines | -11 -10 -9 -8 -8 ---------- Run | Yrd Mat Mat Mat Sto Machines Disabled 10 | . 1 2 4 3 Max in Single Turn 2 | . 1 1 1 2 Machines Repaired . | . . . . . Machines Dismantled . | . . . . . Machines Sabotaged . | . . . . . Overloaded Fab Kills . | . . . . . Hacking | -11 -10 -9 -8 -8 --------- Run | Yrd Mat Mat Mat Sto Machines Accessed 25 | . 7 13 4 1 Terminals 17 | . 5 9 2 1 Fabricators . | . . . . . Repair Stations 4 | . . 2 2 . Recycling Units 2 | . 2 . . . Scanalyzers 2 | . . 2 . . Garrison Access . | . . . . . Total Hacks 83 | . 28 39 9 7 Successful 50 | . 15 27 5 3 Failed 32 | . 13 12 3 4 Catastrophic 2 | . . 2 . . Database Lockouts 1 | . . . 1 . Manual 62 | . 25 24 6 7 Terminals 58 | . 23 23 5 7 Fabricators . | . . . . . Repair Stations 16 | . . 12 4 . Recycling Units 5 | . 5 . . . Scanalyzers 4 | . . 4 . . Garrison Access . | . . . . . Terminal Hacks 16 | . 7 5 2 2 Part Schematic 4 | . 3 1 . . Robot Analysis 7 | . 3 2 2 . Terminal Index 3 | . 1 1 . 1 Unreport Threat 1 | . . 1 . . Patrol Status 1 | . . . . 1 Fabricator Hacks . | . . . . . Repair Station Hacks 14 | . . 12 2 . Scan Component 8 | . . 6 2 . Repair 6 | . . 6 . . Recycling Unit Hacks 2 | . 2 . . . Report Inventory 2 | . 2 . . . Scanalyzer 4 | . . 4 . . Insert Component 2 | . . 2 . . Analyze 2 | . . 2 . . Garrison Access Hacks . | . . . . . Unauthorized Hacks 14 | . 6 6 1 1 Terminals 12 | . 4 6 1 1 Assimilate 4 | . 1 3 . . Botnet 5 | . 2 2 . 1 Operators 3 | . 1 1 1 . Fabricators . | . . . . . Repair Stations . | . . . . . Recycling Units 2 | . 2 . . . Tunnel 2 | . 2 . . . Scanalyzers . | . . . . . Garrison Access . | . . . . . Data Cores Recovered . | . . . . . Used . | . . . . . Hacking Detections 20 | . 5 11 3 1 Full Trace Events 1 | . 1 . . . Feedback Events . | . . . . . Feedback Blocked . | . . . . . Robot Schematics Acquired . | . . . . . Robots Built . | . . . . . Authchips . | . . . . . Time . | . . . . . Total Robot Build Rating . | . . . . . Part Schematics Acquired 6 | . 3 3 . . Parts Built . | . . . . . Authchips . | . . . . . Time . | . . . . . Total Part Build Rating . | . . . . . Parts Repaired 6 | . . 6 . . Time 243 | . . 243 . . Parts Recycled . | . . . . . Recycled Matter . | . . . . . Retrieved Matter . | . . . . . Retrieved Components . | . . . . . Parts Scanalyzed 2 | . . 2 . . Part Schematics Acquired 2 | . . 2 . . Parts Damaged . | . . . . . Bothacking | -11 -10 -9 -8 -8 ------------ Run | Yrd Mat Mat Mat Sto Used RIF Installer . | . . . . . Robots Hacked . | . . . . . Non-combat . | . . . . . Combat . | . . . . . Robot Hacks Applied . | . . . . . Relay Couplers Released . | . . . . . Fabnet Peak Effective % . | . . . . . Robots Rewired . | . . . . . Allies Hacked . | . . . . . Hacks Repelled . | . . . . . Allies | -11 -10 -9 -8 -8 -------- Run | Yrd Mat Mat Mat Sto Total Allies 2 | . . 2 . . Largest Group 1 | . . 1 . . Highest-Rated Group 10 | . . 10 . . Highest-Rated Ally 10 | . . 10 . . Total Orders 4 | . . 4 . . STAY 2 | . . 2 . . FOLLOW 2 | . . 2 . . Ally Attacks . | . . . . . Total Damage . | . . . . . Kills . | . . . . . Allies Corrupted . | . . . . . Allies Melted . | . . . . . Intel | -11 -10 -9 -8 -8 ------- Run | Yrd Mat Mat Mat Sto Robot Analysis Total 7 | . 3 2 2 . Derelict Logs Recovered . | . . . . . Drone Launches . | . . . . . Drone Recoveries . | . . . . . Exploration | -11 -10 -9 -8 -8 ------------- Run | Yrd Mat Mat Mat Sto Turns Passed 6039 | 61 1692 2890 1052 344 Spaces Moved 3188 | 37 1089 1277 609 176 Core 7 | . . . . 7 Treads . | . . . . . Legs 3181 | 37 1089 1277 609 169 Wheels . | . . . . . Hover . | . . . . . Flight . | . . . . . Fastest Speed 120 | 120 120 120 130 130 Average Speed 124 | 120 121 122 130 134 Slowest Speed 250 | 120 190 130 130 250 Overloaded Moves . | . . . . . Propulsion Burnouts . | . . . . . Robots Hopped . | . . . . . Cave-ins Triggered . | . . . . . Exploration Rate (%) 53 | 4 98 98 39 26 Regions Visited 4 Branch Regions 1 Pre-discovered Areas 2 | . 2 . . . Known Exits Taken . | . . . . . Unknown Exits Taken 4 | 1 1 1 1 . Scrap Searched . | . . . . . Spaces Dug 31 | . 30 . . 1 Terrain Destroyed 109 | . 42 . 47 20 Melee 4 | . 3 . . 1 Projectile . | . . . . . AOE 105 | . 39 . 47 19 Terrain Rammed . | . . . . . Walls Destroyed . | . . . . . Machines Disabled . | . . . . . Actions | -11 -10 -9 -8 -8 --------- Run | Yrd Mat Mat Mat Sto Total 4852 | 47 1323 2465 795 222 Wait 1356 | 2 142 1077 128 7 Move 3184 | 36 1088 1276 608 176 Hop . | . . . . . Pick Up 16 | . 5 5 6 . Fast Attach 22 | 1 3 13 4 1 Attach 13 | . 2 3 3 5 Detach 4 | . 2 . 1 1 Swap 24 | . 7 11 6 . Drop 27 | 4 5 14 4 . Fire 172 | 4 65 65 34 4 Melee 33 | . 3 1 1 28 Ram . | . . . . . Kick 1 | . 1 . . . Crush . | . . . . . Escape Stasis . | . . . . . Rewire . | . . . . . Trap . | . . . . . Miscellaneous . | . . . . . Route ------- -11/Scrapyard -10/Materials (discovered 5 exits: *Mat x3 / [*Min x2]) -9/Materials (discovered 5 exits: *Mat x3 / [*Min x2]) -8/Materials (discovered 2 exits: [*Fac] / *Sto) -8/Storage History --------- Turn | Location | Event 12 | -11/Scrapyard | Discovered new exit (range 3) 62 | -11/Scrapyard | Entered Materials 294 | -10/Materials | Discovered new exit (range 8) 310 | -10/Materials | Build established: Mutant 546 | -10/Materials | Discovered new exit (range 15) 740 | -10/Materials | Discovered new exit (range 12) 983 | -10/Materials | Discovered new exit (range 9) 1183 | -10/Materials | Discovered new exit (range 16) 1754 | -10/Materials | Entered another Materials area 1754 | -9/Materials | Evolved 2 slots: Propulsion x1, Weapon x1 2082 | -9/Materials | Build established: Scavenger-Gunner 2147 | -9/Materials | Discovered new exit (range 11) 2234 | -9/Materials | Discovered new exit (range 16) 2515 | -9/Materials | Repaired Imp. Assault Rifle 2549 | -9/Materials | Repaired Autogun 2601 | -9/Materials | Repaired Imp. Assault Rifle 2629 | -9/Materials | Repaired Aluminum Leg 2681 | -9/Materials | Repaired Cld. Ion Engine 3093 | -9/Materials | Discovered new exit (range 13) 3338 | -9/Materials | Discovered new exit (range 15) 3376 | -9/Materials | Repaired Imp. Aluminum Leg 3663 | -9/Materials | Build established: Gunner 4429 | -9/Materials | Discovered new exit (range 7) 4554 | -9/Materials | First assault squad dispatched 4618 | -9/Materials | Build established: Tank 4644 | -9/Materials | Entered another Materials area 4644 | -8/Materials | Evolved 2 slots: Utility x1, Weapon x1 4908 | -8/Materials | Discovered new exit (range 8) 4956 | -8/Materials | Discovered new exit (range 6) 5065 | -8/Materials | Destroyed 7 combat bots 5184 | -8/Materials | Central database locked down 5627 | -8/Materials | Lost 5 parts (1p1u3w) 5696 | -8/Materials | Entered Storage 5795 | -8/Storage | Lost 3 parts (3n) 5869 | -8/Storage | Core integrity fell below 50% 5889 | -8/Storage | Build established: Mutant 6031 | -8/Storage | Core integrity fell below 20% 6040 | -8/Storage | Self-destructed Last Messages --------------- Trojan loaded successfully. Testing... Terminal linked with 0 systems. Awaiting botnet instructions. 05901_ O-16 Technician: "IFF HANDSHAKE FAILED. SECURING TERMINAL." 05910_ ALERT: Hostiles spotted, dispatching reinforcements to Terminal S012. 05990_ Critical hit (Burn: +37). 05991_ G-47 Trooper Lgt. Nuclear Core ripped off. 05998_ Titanium Leg destroyed. 06006_ G-47 Trooper destroyed. 06018_ Destroyed Lgt. Nuclear Core. 06020_ Critical hit (Burn: +37). 06026_ Hacking Suite destroyed. 06032_ Mining Claw destroyed. 06034_ Destroyed Imp. Heat Sink. 06034_ G-47 Trooper destroyed. 06034_ Component Storage disabled. 06038_ G-47 Trooper destroyed. 06038_ K-01 Serf cleans the Terminal. Map ----- +----------------------------------------------------+ | ?????????????????????????????????????????????????? | | ?????????????????????????????????????????????????? | | ?????????????????????????????????????????????????? | | ?????????????????????????????????????????????????? | | ?????????????????????????????????????????????????? | | ?????????????????????????????????????????????????? | | ?????????????????????????????????????????????????? | | ?????????????????????????????????????????????????? | | ?????????????????????????????????????????????????? | | ?????????????????????????????????????????????????? | | ?????????????????????????????????????????????????? | | ?????????????????????????????#???????????????????? | | ???????????????????????????? ??????????????????? | | ???????????????????????????? ???????????????????? | | ??????????????????????????? ??#????????????????? | | ??????????????????????????? ? #????????????????? | | ???????????????????????#"?" ?? #????????????????? | | ???????????????????????#"?" ? #????????????????? | | ???????????????????????#"?" #????????????????? | | ???????????????????????#"?" ? #????????????????? | | ??????????????????###?## ? ?????????????????? | | ?????????????????## ### # # ###????????????????? | | ?????????????????# #T######?????????? | | ?????????????????# """"" ukw ???????? | | ?????????????????# """"" % u ???????? | | ??????????#####??# """"" @ % """ ???????????? | | ???????####"T"#### [ """?????????????? | | ???????# ## """" """?????????????? | | ???????#""" ## """"" ???????????? | | ???????#""" # """"" ## #??????????? | | ???????#""" ## #? "" #??????????? | | ???????# ###########?? "T #??????????? | | ???????#""" #???????????? "" m #??????????? | | ???????#""" ##########???? #??????????? | | ???????#""" ## """ """????? ? ???????????? | | ?####### ## """ """ #???##??? ???????????? | | ## #####/##+## """ """ +?????????????????????? | | # #?????????????????????? | | + #?????????????????????? | | # #?????????????????????? | | ## ######## # #?????????????????????? | | ###+##########! # #?????????????????????? | | # *%+!=######### #?????????????????????? | | # """""^%####???????????????????????????????? | | # """"" #??????????????????????????????????? | | # """"" #??????????????????????????????????? | | # #??????????????????????????????????? | | ##############???????????????????????????????????? | | | | | +----------------------------------------------------+ Best States ------------- Heat Dissipation 45 Energy Generation 14 Energy Capacity 280 Matter Stores 300 Matter Capacity 300 Sight Range 16 Terrain Scan Density 10 Armor Coverage 225 Evasion (%) 55 Offensive Hacking 20 Item Schematics ----------------- Med. Storage Unit | -10/Materials | Hacked Weapon Shielding | -10/Materials | Hacked Lrg. Storage Unit | -10/Materials | Hacked Shield Generator | -9/Materials | Hacked Hacking Suite | -9/Materials | Scanalyzed Imp. Assault Rifle | -9/Materials | Scanalyzed Robot Schematics ------------------ None Fabricated ------------ Nothing Alien Tech Used ----------------- None Achievements -------------- None Challenges ------------ None Game ------ Seed MappingCloakingShielding Manual? 0 Play Time 00:40:12 Cumulative 117.7 hours Start 2024.05.26 @ 03:39:22 End 2024.05.26 @ 04:19:25 Sessions 1 Manual Loads 0 Difficulty Rogue Special Mode None Game No. 79 Rogue 79 Adventurer 0 Explorer 0 Win Type - Total 2 Types 1/0/0/1/0/0/0/0/0 Lore% 61 Gallery% 53 Achievement% 49 Wizard Run 0 Options --------- Layout 0 ASCII 0 Keyboard 0 Movement Mouse Keybinds 0 Fullscreen 1 Font 18/SmallcapsGlow Map View 76x50 Zoom Use 0% Tactical HUD 1 Map Filters NONE Filters NONE Steam 1 RUN: a2c92ada-0c0a-4ce3-b873-a8be78e6230c